[Event "Titled Tuesday Blitz June 6 Early 2023"]
[White "Clawitter, Craig"]
[Black "Fernandez Garcia, Gumersindo"]
[WhiteFideId "2023105"]
[BlackFideId "24516740"]
[WhiteElo "2235"]
[BlackElo "2093"]
[Result "0-1"]
[Round "10"]
[TimeControl "180+2"]
[Date "2023.06.06"]
[WhiteClock "0:00:02"]
[BlackClock "0:01:12"]
[Board "120"]

1. e4 {[%clk 0:03:00]}  e5 {[%clk 0:02:57]} 2. Nc3 {[%clk 0:03:00]}  Nf6 {[%clk 0:02:56]} 3. g3 {[%clk 0:03:00]}  d5 {[%clk 0:02:55]} 4. exd5 {[%clk 0:03:01]}  Nxd5 {[%clk 0:02:55]} 5. Bg2 {[%clk 0:03:01]}  Nxc3 {[%clk 0:02:56]} 6. bxc3 {[%clk 0:03:02]}  Bd6 {[%clk 0:02:55]} 7. Nf3 {[%clk 0:03:01]}  O-O {[%clk 0:02:55]} 8. O-O {[%clk 0:03:01]}  Nc6 {[%clk 0:02:56]} 9. Rb1 {[%clk 0:02:51]}  f5 {[%clk 0:02:54]} 10. d4 {[%clk 0:02:46]}  e4 {[%clk 0:02:53]} 11. Ng5 {[%clk 0:02:35]}  h6 {[%clk 0:02:36]} 12. Nh3 {[%clk 0:02:30]}  g5 {[%clk 0:02:20]} 13. Qh5 {[%clk 0:02:23]}  Qf6 {[%clk 0:02:20]} 14. f3 {[%clk 0:02:06]}  exf3 {[%clk 0:02:13]} 15. Bxf3 {[%clk 0:02:03]}  Kg7 {[%clk 0:01:53]} 16. Nf2 {[%clk 0:01:24]}  Qg6 {[%clk 0:01:49]} 17. Nd3 {[%clk 0:01:04]}  Qxh5 {[%clk 0:01:39]} 18. Bxh5 {[%clk 0:01:05]}  Na5 {[%clk 0:01:37]} 19. Ne5 {[%clk 0:00:46]}  Bxe5 {[%clk 0:01:33]} 20. dxe5 {[%clk 0:00:46]}  Be6 {[%clk 0:01:32]} 21. Bf3 {[%clk 0:00:26]}  Rab8 {[%clk 0:01:29]} 22. Be3 {[%clk 0:00:19]}  b6 {[%clk 0:01:29]} 23. Rbd1 {[%clk 0:00:15]}  Rfd8 {[%clk 0:01:29]} 24. h4 {[%clk 0:00:11]}  Nc4 {[%clk 0:01:29]} 25. Bc1 {[%clk 0:00:09]}  g4 {[%clk 0:01:27]} 26. Bg2 {[%clk 0:00:06]}  c5 {[%clk 0:01:25]} 27. Bf4 {[%clk 0:00:03]}  b5 {[%clk 0:01:17]} 28. Kf2 {[%clk 0:00:01]}  a5 {[%clk 0:01:17]} 29. Rxd8 {[%clk 0:00:01]}  Rxd8 {[%clk 0:01:17]} 30. Ke2 {[%clk 0:00:02]}  Nb2 {[%clk 0:01:12]} 0-1


[Site "https://www.chess.com"]

[Event "Titled Tuesday Blitz June 6 Early 2023"]
[White "Araujo Filho, Luiz Antonio Coel"]
[Black "Hoffmann, Asa"]
[WhiteFideId "2130661"]
[BlackFideId "2001470"]
[WhiteElo "2056"]
[BlackElo "2117"]
[Result "0-1"]
[Round "10"]
[TimeControl "180+2"]
[Date "2023.06.06"]
[WhiteClock "0:00:01"]
[BlackClock "0:00:08"]
[Board "123"]

1. d4 {[%clk 0:03:00]}  Nf6 {[%clk 0:02:53]} 2. Nf3 {[%clk 0:03:01]}  d6 {[%clk 0:02:53]} 3. c4 {[%clk 0:03:01]}  c6 {[%clk 0:02:52]} 4. Nc3 {[%clk 0:03:01]}  Bf5 {[%clk 0:02:52]} 5. g3 {[%clk 0:02:57]}  h6 {[%clk 0:02:51]} 6. Bg2 {[%clk 0:02:57]}  Nbd7 {[%clk 0:02:51]} 7. O-O {[%clk 0:02:57]}  e5 {[%clk 0:02:51]} 8. dxe5 {[%clk 0:02:57]}  dxe5 {[%clk 0:02:50]} 9. Re1 {[%clk 0:02:54]}  Be7 {[%clk 0:02:49]} 10. e4 {[%clk 0:02:54]}  Bh7 {[%clk 0:02:48]} 11. b4 {[%clk 0:02:54]}  Bxb4 {[%clk 0:02:46]} 12. Bd2 {[%clk 0:02:51]}  Qa5 {[%clk 0:02:44]} 13. Qc2 {[%clk 0:02:47]}  O-O {[%clk 0:02:42]} 14. a3 {[%clk 0:02:44]}  Bc5 {[%clk 0:02:26]} 15. Na4 {[%clk 0:02:28]}  Qc7 {[%clk 0:02:20]} 16. Nxc5 {[%clk 0:02:24]}  Nxc5 {[%clk 0:02:19]} 17. Bb4 {[%clk 0:02:24]}  Nfd7 {[%clk 0:02:07]} 18. Nh4 {[%clk 0:02:12]}  a5 {[%clk 0:02:03]} 19. Bc3 {[%clk 0:02:11]}  Ne6 {[%clk 0:01:50]} 20. Rad1 {[%clk 0:02:01]}  Rad8 {[%clk 0:01:47]} 21. Nf5 {[%clk 0:01:26]}  Bxf5 {[%clk 0:01:36]} 22. exf5 {[%clk 0:01:26]}  Nec5 {[%clk 0:01:31]} 23. Qe2 {[%clk 0:01:20]}  f6 {[%clk 0:01:28]} 24. Qg4 {[%clk 0:01:10]}  b6 {[%clk 0:01:26]} 25. Bd2 {[%clk 0:00:49]}  Kh8 {[%clk 0:01:24]} 26. Bxh6 {[%clk 0:00:35]}  gxh6 {[%clk 0:01:22]} 27. Qg6 {[%clk 0:00:35]}  Nb8 {[%clk 0:01:03]} 28. Rxd8 {[%clk 0:00:36]}  Rxd8 {[%clk 0:00:53]} 29. Qxh6+ {[%clk 0:00:36]}  Kg8 {[%clk 0:00:51]} 30. Qxf6 {[%clk 0:00:23]}  Rf8 {[%clk 0:00:36]} 31. Qg6+ {[%clk 0:00:20]}  Qg7 {[%clk 0:00:35]} 32. Qd6 {[%clk 0:00:21]}  Nbd7 {[%clk 0:00:28]} 33. Bxc6 {[%clk 0:00:20]}  Rf6 {[%clk 0:00:23]} 34. Qc7 {[%clk 0:00:16]}  Nf8 {[%clk 0:00:23]} 35. Bd5+ {[%clk 0:00:12]}  Kh7 {[%clk 0:00:22]} 36. Qxe5 {[%clk 0:00:13]}  Nd3 {[%clk 0:00:17]} 37. Qe7 {[%clk 0:00:04]}  Nxe1 {[%clk 0:00:16]} 38. Qxe1 {[%clk 0:00:04]}  Qd7 {[%clk 0:00:15]} 39. Qe3 {[%clk 0:00:04]}  Kh8 {[%clk 0:00:11]} 40. Qd4 {[%clk 0:00:02]}  Qg7 {[%clk 0:00:09]} 41. Be4 {[%clk 0:00:01]}  Nd7 {[%clk 0:00:08]} 0-1


[Site "https://www.chess.com"]

[Event "Titled Tuesday Blitz June 6 Early 2023"]
[White "Dwilewicz, Katarzyna"]
[Black "Francisco_Ferrari"]
[WhiteFideId "1148486"]
[WhiteElo "2098"]
[BlackElo "2154"]
[Result "0-1"]
[Round "10"]
[TimeControl "180+2"]
[Date "2023.06.06"]
[WhiteClock "0:00:12"]
[BlackClock "0:00:05"]
[Board "124"]

1. e4 {[%clk 0:03:00]}  c5 {[%clk 0:02:52]} 2. Nf3 {[%clk 0:03:00]}  d6 {[%clk 0:02:51]} 3. d4 {[%clk 0:02:59]}  cxd4 {[%clk 0:02:52]} 4. Nxd4 {[%clk 0:03:00]}  Nf6 {[%clk 0:02:52]} 5. Nc3 {[%clk 0:02:59]}  a6 {[%clk 0:02:53]} 6. h3 {[%clk 0:02:59]}  e5 {[%clk 0:02:39]} 7. Nde2 {[%clk 0:02:56]}  h5 {[%clk 0:02:32]} 8. Bg5 {[%clk 0:02:56]}  Be6 {[%clk 0:02:31]} 9. Bxf6 {[%clk 0:02:55]}  Qxf6 {[%clk 0:02:31]} 10. Nd5 {[%clk 0:02:56]}  Qd8 {[%clk 0:02:31]} 11. Qd3 {[%clk 0:02:56]}  Nd7 {[%clk 0:02:31]} 12. O-O-O {[%clk 0:02:57]}  Rc8 {[%clk 0:02:32]} 13. Kb1 {[%clk 0:02:54]}  g6 {[%clk 0:02:28]} 14. f4 {[%clk 0:02:52]}  Bg7 {[%clk 0:02:23]} 15. Nec3 {[%clk 0:02:39]}  exf4 {[%clk 0:01:29]} 16. Nxf4 {[%clk 0:02:38]}  Bc4 {[%clk 0:01:12]} 17. Qxd6 {[%clk 0:02:27]}  Be5 {[%clk 0:01:09]} 18. Qd2 {[%clk 0:02:21]}  Bxf1 {[%clk 0:00:59]} 19. Rhxf1 {[%clk 0:02:18]}  Rxc3 {[%clk 0:00:43]} 20. bxc3 {[%clk 0:02:12]}  Qb6+ {[%clk 0:00:42]} 21. Ka1 {[%clk 0:02:10]}  O-O {[%clk 0:00:41]} 22. Nd5 {[%clk 0:02:03]}  Qa5 {[%clk 0:00:36]} 23. Rf3 {[%clk 0:01:53]}  Nc5 {[%clk 0:00:27]} 24. Qh6 {[%clk 0:01:37]}  Re8 {[%clk 0:00:12]} 25. Rdf1 {[%clk 0:00:46]}  Nxe4 {[%clk 0:00:06]} 26. Qe3 {[%clk 0:00:36]}  Qxd5 {[%clk 0:00:03]} 27. Qd3 {[%clk 0:00:19]}  Bxc3+ {[%clk 0:00:03]} 28. Kb1 {[%clk 0:00:18]}  Qa5 {[%clk 0:00:04]} 29. Qc4 {[%clk 0:00:13]}  Nd2+ {[%clk 0:00:04]} 30. Kc1 {[%clk 0:00:12]}  Nxc4 {[%clk 0:00:05]} 0-1


[Site "https://www.chess.com"]

[Event "Titled Tuesday Blitz June 6 Early 2023"]
[White "Zallio, Luciano de Souza"]
[Black "Rian, Kapriaga"]
[WhiteFideId "2109700"]
[BlackFideId "7103263"]
[WhiteElo "2057"]
[BlackElo "2325"]
[Result "0-1"]
[Round "10"]
[TimeControl "180+2"]
[Date "2023.06.06"]
[WhiteClock "0:02:19"]
[BlackClock "0:02:32"]
[Board "125"]

1. e4 {[%clk 0:03:00]}  c6 {[%clk 0:02:58]} 2. d4 {[%clk 0:03:00]}  d5 {[%clk 0:02:58]} 3. e5 {[%clk 0:03:01]}  Bf5 {[%clk 0:02:56]} 4. Nf3 {[%clk 0:03:01]}  e6 {[%clk 0:02:55]} 5. Bd3 {[%clk 0:03:02]}  Bxd3 {[%clk 0:02:54]} 6. Qxd3 {[%clk 0:03:03]}  Qa5+ {[%clk 0:02:53]} 7. c3 {[%clk 0:02:59]}  Qa6 {[%clk 0:02:53]} 8. Qxa6 {[%clk 0:02:56]}  Nxa6 {[%clk 0:02:54]} 9. O-O {[%clk 0:02:54]}  c5 {[%clk 0:02:54]} 10. Be3 {[%clk 0:02:50]}  cxd4 {[%clk 0:02:53]} 11. Bxd4 {[%clk 0:02:47]}  Ne7 {[%clk 0:02:51]} 12. Nbd2 {[%clk 0:02:45]}  Nf5 {[%clk 0:02:49]} 13. g4 {[%clk 0:02:45]}  Ne7 {[%clk 0:02:48]} 14. Kg2 {[%clk 0:02:44]}  h5 {[%clk 0:02:46]} 15. h3 {[%clk 0:02:44]}  Nb8 {[%clk 0:02:44]} 16. c4 {[%clk 0:02:40]}  Nbc6 {[%clk 0:02:42]} 17. cxd5 {[%clk 0:02:40]}  Nxd5 {[%clk 0:02:41]} 18. Ne4 {[%clk 0:02:30]}  Be7 {[%clk 0:02:34]} 19. Rac1 {[%clk 0:02:20]}  hxg4 {[%clk 0:02:32]} 20. hxg4 {[%clk 0:02:19]}  Nf4+ {[%clk 0:02:32]} 0-1


[Site "https://www.chess.com"]

[Event "Titled Tuesday Blitz June 6 Early 2023"]
[White "Rodriguez Santiago, Jaime"]
[Black "Lakshmi C"]
[WhiteFideId "3100898"]
[BlackFideId "25035347"]
[WhiteElo "2025"]
[BlackElo "1942"]
[Result "1-0"]
[Round "10"]
[TimeControl "180+2"]
[Date "2023.06.06"]
[WhiteClock "0:00:35"]
[BlackClock "0:00:01"]
[Board "126"]

1. c4 {[%clk 0:03:00]}  e5 {[%clk 0:02:55]} 2. Nc3 {[%clk 0:02:59]}  Nc6 {[%clk 0:02:44]} 3. g3 {[%clk 0:02:58]}  Nge7 {[%clk 0:02:39]} 4. Bg2 {[%clk 0:02:56]}  g6 {[%clk 0:02:39]} 5. e4 {[%clk 0:02:53]}  Bg7 {[%clk 0:02:38]} 6. Nge2 {[%clk 0:02:53]}  O-O {[%clk 0:02:35]} 7. O-O {[%clk 0:02:48]}  f5 {[%clk 0:02:35]} 8. d3 {[%clk 0:02:43]}  d6 {[%clk 0:02:29]} 9. Rb1 {[%clk 0:02:33]}  a5 {[%clk 0:02:27]} 10. f4 {[%clk 0:02:29]}  Be6 {[%clk 0:01:46]} 11. Nd5 {[%clk 0:02:26]}  Nb8 {[%clk 0:01:32]} 12. fxe5 {[%clk 0:02:16]}  dxe5 {[%clk 0:01:29]} 13. Bg5 {[%clk 0:02:10]}  Nbc6 {[%clk 0:01:28]} 14. exf5 {[%clk 0:02:06]}  gxf5 {[%clk 0:01:23]} 15. Nec3 {[%clk 0:02:05]}  Qd6 {[%clk 0:01:16]} 16. Nxe7+ {[%clk 0:02:00]}  Nxe7 {[%clk 0:01:14]} 17. Bxe7 {[%clk 0:01:54]}  Qxe7 {[%clk 0:01:14]} 18. Bxb7 {[%clk 0:01:54]}  Qc5+ {[%clk 0:00:57]} 19. Kh1 {[%clk 0:01:52]}  Rad8 {[%clk 0:00:40]} 20. Bd5 {[%clk 0:01:30]}  Bxd5+ {[%clk 0:00:25]} 21. cxd5 {[%clk 0:01:30]}  c6 {[%clk 0:00:17]} 22. dxc6 {[%clk 0:01:24]}  e4 {[%clk 0:00:14]} 23. Qb3+ {[%clk 0:01:24]}  Kh8 {[%clk 0:00:13]} 24. dxe4 {[%clk 0:01:24]}  Qxc6 {[%clk 0:00:12]} 25. Rbe1 {[%clk 0:01:16]}  fxe4 {[%clk 0:00:09]} 26. Rxf8+ {[%clk 0:01:15]}  Rxf8 {[%clk 0:00:08]} 27. Qd5 {[%clk 0:01:14]}  Qxd5 {[%clk 0:00:07]} 28. Nxd5 {[%clk 0:01:13]}  Re8 {[%clk 0:00:08]} 29. Kg2 {[%clk 0:01:10]}  Bxb2 {[%clk 0:00:06]} 30. Re2 {[%clk 0:01:09]}  Bd4 {[%clk 0:00:06]} 31. g4 {[%clk 0:01:04]}  Kg7 {[%clk 0:00:05]} 32. h4 {[%clk 0:01:04]}  Bc5 {[%clk 0:00:02]} 33. Nf4 {[%clk 0:01:01]}  Bd6 {[%clk 0:00:01]} 34. Nh5+ {[%clk 0:01:00]}  Kg6 {[%clk 0:00:01]} 35. Ng3 {[%clk 0:00:56]}  e3 {[%clk 0:00:01]} 36. Nf5 {[%clk 0:00:54]}  Bc5 {[%clk 0:00:01]} 37. Kf3 {[%clk 0:00:53]}  Rf8 {[%clk 0:00:01]} 38. Ke4 {[%clk 0:00:50]}  Re8+ {[%clk 0:00:01]} 39. Kf4 {[%clk 0:00:45]}  Rf8 {[%clk 0:00:01]} 40. h5+ {[%clk 0:00:45]}  Kf6 {[%clk 0:00:01]} 41. Nxe3 {[%clk 0:00:35]}  Ke6+ {[%clk 0:00:01]} 42. Nf5+ {[%clk 0:00:35]} 1-0


[Site "https://www.chess.com"]

[Event "Titled Tuesday Blitz June 6 Early 2023"]
[White "Dubreuil, Julien"]
[Black "Alexanian, Nelli"]
[WhiteFideId "621285"]
[BlackFideId "4170539"]
[WhiteElo "2277"]
[BlackElo "2059"]
[Result "0-1"]
[Round "10"]
[TimeControl "180+2"]
[Date "2023.06.06"]
[WhiteClock "0:00:04"]
[BlackClock "0:00:12"]
[Board "127"]

1. e4 {[%clk 0:03:00]}  e6 {[%clk 0:02:59]} 2. d4 {[%clk 0:03:00]}  d5 {[%clk 0:02:58]} 3. Bd3 {[%clk 0:03:00]}  dxe4 {[%clk 0:02:55]} 4. Bxe4 {[%clk 0:03:00]}  Nf6 {[%clk 0:02:52]} 5. Bf3 {[%clk 0:03:01]}  c5 {[%clk 0:02:49]} 6. Ne2 {[%clk 0:03:01]}  Nc6 {[%clk 0:02:48]} 7. Be3 {[%clk 0:02:59]}  Qb6 {[%clk 0:02:39]} 8. Nbc3 {[%clk 0:02:56]}  cxd4 {[%clk 0:02:19]} 9. Nxd4 {[%clk 0:02:54]}  Nxd4 {[%clk 0:02:09]} 10. Bxd4 {[%clk 0:02:53]}  Bc5 {[%clk 0:02:09]} 11. Bxc5 {[%clk 0:02:51]}  Qxc5 {[%clk 0:02:08]} 12. Qd2 {[%clk 0:02:42]}  O-O {[%clk 0:02:04]} 13. O-O-O {[%clk 0:02:42]}  Bd7 {[%clk 0:02:02]} 14. Ne4 {[%clk 0:02:29]}  Nxe4 {[%clk 0:01:54]} 15. Qxd7 {[%clk 0:02:28]}  Nxf2 {[%clk 0:01:51]} 16. Bxb7 {[%clk 0:02:26]}  Rab8 {[%clk 0:01:39]} 17. Qc6 {[%clk 0:01:45]}  Qg5+ {[%clk 0:01:26]} 18. Kb1 {[%clk 0:01:42]}  Nxh1 {[%clk 0:01:25]} 19. Rxh1 {[%clk 0:01:40]}  Rfd8 {[%clk 0:01:22]} 20. a3 {[%clk 0:01:19]}  Qd5 {[%clk 0:01:20]} 21. Qxd5 {[%clk 0:01:19]}  exd5 {[%clk 0:01:20]} 22. Ba6 {[%clk 0:01:17]}  Rd6 {[%clk 0:01:13]} 23. Bd3 {[%clk 0:01:17]}  a5 {[%clk 0:01:11]} 24. b3 {[%clk 0:01:15]}  d4 {[%clk 0:01:09]} 25. Rf1 {[%clk 0:01:14]}  g6 {[%clk 0:01:08]} 26. g4 {[%clk 0:01:10]}  Kg7 {[%clk 0:01:06]} 27. g5 {[%clk 0:01:10]}  Rb7 {[%clk 0:01:02]} 28. Rf4 {[%clk 0:01:04]}  Rd5 {[%clk 0:01:01]} 29. h4 {[%clk 0:01:04]}  h6 {[%clk 0:00:58]} 30. gxh6+ {[%clk 0:01:00]}  Kxh6 {[%clk 0:00:57]} 31. Kb2 {[%clk 0:00:52]}  f5 {[%clk 0:00:54]} 32. c4 {[%clk 0:00:37]}  dxc3+ {[%clk 0:00:52]} 33. Kxc3 {[%clk 0:00:38]}  Rxd3+ {[%clk 0:00:47]} 34. Kxd3 {[%clk 0:00:37]}  Rxb3+ {[%clk 0:00:47]} 35. Kd4 {[%clk 0:00:30]}  Rxa3 {[%clk 0:00:46]} 36. Ke5 {[%clk 0:00:30]}  a4 {[%clk 0:00:40]} 37. Kf6 {[%clk 0:00:30]}  Kh5 {[%clk 0:00:36]} 38. Rb4 {[%clk 0:00:27]}  Ra1 {[%clk 0:00:33]} 39. Rb8 {[%clk 0:00:16]}  a3 {[%clk 0:00:32]} 40. Rh8+ {[%clk 0:00:14]}  Kg4 {[%clk 0:00:32]} 41. Kxg6 {[%clk 0:00:03]}  a2 {[%clk 0:00:32]} 42. Ra8 {[%clk 0:00:03]}  f4 {[%clk 0:00:29]} 43. h5 {[%clk 0:00:04]}  f3 {[%clk 0:00:26]} 44. h6 {[%clk 0:00:04]}  Kf4 {[%clk 0:00:17]} 45. Ra4+ {[%clk 0:00:04]}  Ke3 {[%clk 0:00:14]} 46. Rh4 {[%clk 0:00:04]}  Rg1+ {[%clk 0:00:13]} 47. Kf5 {[%clk 0:00:04]}  a1=Q {[%clk 0:00:12]} 0-1


[Site "https://www.chess.com"]

[Event "Titled Tuesday Blitz June 6 Early 2023"]
[White "Korpics, Zsolt"]
[Black "Kriti Mayur Patel"]
[WhiteFideId "705241"]
[BlackFideId "35061780"]
[WhiteElo "2335"]
[BlackElo "1306"]
[Result "0-1"]
[Round "10"]
[TimeControl "180+2"]
[Date "2023.06.06"]
[WhiteClock "0:00:10"]
[BlackClock "0:00:22"]
[Board "131"]

1. e4 {[%clk 0:02:57]}  e5 {[%clk 0:02:59]} 2. Nf3 {[%clk 0:02:57]}  Nc6 {[%clk 0:02:59]} 3. d4 {[%clk 0:02:56]}  exd4 {[%clk 0:02:59]} 4. Bb5 {[%clk 0:02:56]}  Bb4+ {[%clk 0:02:52]} 5. Bd2 {[%clk 0:02:40]}  Bxd2+ {[%clk 0:02:39]} 6. Qxd2 {[%clk 0:02:38]}  Nf6 {[%clk 0:02:38]} 7. e5 {[%clk 0:02:32]}  Ne4 {[%clk 0:02:31]} 8. Qd3 {[%clk 0:02:18]}  Nc5 {[%clk 0:02:14]} 9. Qa3 {[%clk 0:01:53]}  Ne6 {[%clk 0:02:03]} 10. Nbd2 {[%clk 0:01:26]}  a6 {[%clk 0:01:58]} 11. Bxc6 {[%clk 0:01:13]}  dxc6 {[%clk 0:01:54]} 12. Ne4 {[%clk 0:01:12]}  b6 {[%clk 0:01:48]} 13. Rd1 {[%clk 0:01:02]}  c5 {[%clk 0:01:43]} 14. c3 {[%clk 0:00:47]}  Bb7 {[%clk 0:01:41]} 15. Ng3 {[%clk 0:00:43]}  Bxf3 {[%clk 0:01:33]} 16. gxf3 {[%clk 0:00:43]}  O-O {[%clk 0:01:33]} 17. Nf5 {[%clk 0:00:40]}  Qg5 {[%clk 0:01:27]} 18. Ng3 {[%clk 0:00:25]}  Qxe5+ {[%clk 0:01:25]} 19. Kf1 {[%clk 0:00:26]}  Nf4 {[%clk 0:01:18]} 20. cxd4 {[%clk 0:00:24]}  cxd4 {[%clk 0:01:17]} 21. Re1 {[%clk 0:00:20]}  Qb5+ {[%clk 0:01:09]} 22. Kg1 {[%clk 0:00:20]}  d3 {[%clk 0:01:01]} 23. Qc3 {[%clk 0:00:18]}  Rae8 {[%clk 0:00:53]} 24. Rd1 {[%clk 0:00:18]}  Ne2+ {[%clk 0:00:51]} 25. Nxe2 {[%clk 0:00:17]}  dxe2 {[%clk 0:00:50]} 26. Re1 {[%clk 0:00:18]}  Rd8 {[%clk 0:00:49]} 27. h4 {[%clk 0:00:15]}  Rd1 {[%clk 0:00:47]} 28. Kh2 {[%clk 0:00:15]}  Qd5 {[%clk 0:00:42]} 29. Rhg1 {[%clk 0:00:14]}  Qd6+ {[%clk 0:00:41]} 30. Kh1 {[%clk 0:00:11]}  Qh6 {[%clk 0:00:31]} 31. Rxd1 {[%clk 0:00:07]}  exd1=Q {[%clk 0:00:30]} 32. Rxd1 {[%clk 0:00:08]}  Qxh4+ {[%clk 0:00:31]} 33. Kg2 {[%clk 0:00:08]}  Qg5+ {[%clk 0:00:31]} 34. Kh1 {[%clk 0:00:07]}  Re8 {[%clk 0:00:28]} 35. Qxc7 {[%clk 0:00:04]}  h6 {[%clk 0:00:23]} 36. Rg1 {[%clk 0:00:04]}  Qh4+ {[%clk 0:00:22]} 37. Kg2 {[%clk 0:00:05]}  Re2 {[%clk 0:00:20]} 38. Qxb6 {[%clk 0:00:04]}  Re6 {[%clk 0:00:19]} 39. Qb8+ {[%clk 0:00:03]}  Kh7 {[%clk 0:00:19]} 40. Qb3 {[%clk 0:00:03]}  Rg6+ {[%clk 0:00:19]} 41. Kf1 {[%clk 0:00:03]}  Qh3+ {[%clk 0:00:16]} 42. Ke2 {[%clk 0:00:03]}  Rxg1 {[%clk 0:00:16]} 43. Qxf7 {[%clk 0:00:03]}  Rg6 {[%clk 0:00:15]} 44. b4 {[%clk 0:00:02]}  Qe6+ {[%clk 0:00:16]} 45. Qxe6 {[%clk 0:00:02]}  Rxe6+ {[%clk 0:00:17]} 46. Kd3 {[%clk 0:00:03]}  Rb6 {[%clk 0:00:17]} 47. Kc4 {[%clk 0:00:03]}  Rf6 {[%clk 0:00:16]} 48. a4 {[%clk 0:00:04]}  Rxf3 {[%clk 0:00:17]} 49. b5 {[%clk 0:00:04]}  axb5+ {[%clk 0:00:17]} 50. axb5 {[%clk 0:00:05]}  Rxf2 {[%clk 0:00:17]} 51. Kc3 {[%clk 0:00:05]}  Rf8 {[%clk 0:00:17]} 52. Kc4 {[%clk 0:00:05]}  Rb8 {[%clk 0:00:17]} 53. Kc5 {[%clk 0:00:05]}  Kg6 {[%clk 0:00:18]} 54. b6 {[%clk 0:00:05]}  Rxb6 {[%clk 0:00:18]} 55. Kxb6 {[%clk 0:00:06]}  Kf5 {[%clk 0:00:19]} 56. Kc5 {[%clk 0:00:06]}  h5 {[%clk 0:00:20]} 57. Kd4 {[%clk 0:00:07]}  Kf4 {[%clk 0:00:21]} 58. Kd3 {[%clk 0:00:07]}  h4 {[%clk 0:00:21]} 59. Ke2 {[%clk 0:00:08]}  Kg3 {[%clk 0:00:21]} 60. Kf1 {[%clk 0:00:08]}  g5 {[%clk 0:00:22]} 61. Kg1 {[%clk 0:00:09]}  g4 {[%clk 0:00:23]} 62. Kh1 {[%clk 0:00:09]}  Kh3 {[%clk 0:00:23]} 63. Kg1 {[%clk 0:00:10]}  Kg3 {[%clk 0:00:23]} 64. Kh1 {[%clk 0:00:10]}  Kf3 {[%clk 0:00:24]} 65. Kg1 {[%clk 0:00:10]}  h3 {[%clk 0:00:23]} 66. Kh2 {[%clk 0:00:09]}  g3+ {[%clk 0:00:22]} 67. Kh1 {[%clk 0:00:09]}  g2+ {[%clk 0:00:20]} 68. Kg1 {[%clk 0:00:09]}  h2+ {[%clk 0:00:20]} 69. Kxh2 {[%clk 0:00:10]}  Kf2 {[%clk 0:00:20]} 70. Kh3 {[%clk 0:00:11]}  g1=Q {[%clk 0:00:21]} 71. Kh4 {[%clk 0:00:11]}  Qg8 {[%clk 0:00:21]} 72. Kh5 {[%clk 0:00:09]}  Kf3 {[%clk 0:00:21]} 73. Kh6 {[%clk 0:00:10]}  Kf4 {[%clk 0:00:22]} 74. Kh5 {[%clk 0:00:10]}  Qg5# {[%clk 0:00:22]} 0-1


[Site "https://www.chess.com"]

[Event "Titled Tuesday Blitz June 6 Early 2023"]
[White "Jiganchine, Roman"]
[Black "Quirke, Jeffrey"]
[WhiteFideId "2603667"]
[BlackFideId "2013029"]
[WhiteElo "2294"]
[BlackElo "2204"]
[Result "1-0"]
[Round "10"]
[TimeControl "180+2"]
[Date "2023.06.06"]
[WhiteClock "0:00:20"]
[BlackClock "0:00:01"]
[Board "132"]

1. e4 {[%clk 0:02:59]}  Nf6 {[%clk 0:02:58]} 2. e5 {[%clk 0:02:58]}  Nd5 {[%clk 0:02:59]} 3. c4 {[%clk 0:02:58]}  Nb6 {[%clk 0:02:58]} 4. c5 {[%clk 0:02:58]}  Nd5 {[%clk 0:02:58]} 5. Nc3 {[%clk 0:02:59]}  c6 {[%clk 0:02:58]} 6. d4 {[%clk 0:02:58]}  d6 {[%clk 0:02:58]} 7. cxd6 {[%clk 0:02:53]}  exd6 {[%clk 0:02:58]} 8. Nf3 {[%clk 0:02:51]}  dxe5 {[%clk 0:02:39]} 9. Nxe5 {[%clk 0:02:51]}  Be6 {[%clk 0:02:39]} 10. Bd3 {[%clk 0:02:50]}  Nd7 {[%clk 0:02:33]} 11. O-O {[%clk 0:02:40]}  Nxe5 {[%clk 0:02:29]} 12. dxe5 {[%clk 0:02:41]}  Nxc3 {[%clk 0:02:29]} 13. bxc3 {[%clk 0:02:41]}  Bc5 {[%clk 0:02:15]} 14. Qf3 {[%clk 0:02:35]}  Qa5 {[%clk 0:01:51]} 15. Bg5 {[%clk 0:02:23]}  h6 {[%clk 0:01:40]} 16. Bf4 {[%clk 0:02:09]}  O-O-O {[%clk 0:01:33]} 17. Be4 {[%clk 0:02:03]}  Qa6 {[%clk 0:00:57]} 18. Rab1 {[%clk 0:01:56]}  Rd7 {[%clk 0:00:49]} 19. h4 {[%clk 0:01:55]}  g5 {[%clk 0:00:34]} 20. Bg3 {[%clk 0:01:47]}  g4 {[%clk 0:00:26]} 21. Qf6 {[%clk 0:01:45]}  Rhd8 {[%clk 0:00:22]} 22. h5 {[%clk 0:01:42]}  Qxa2 {[%clk 0:00:16]} 23. Qxh6 {[%clk 0:01:40]}  Qc4 {[%clk 0:00:15]} 24. Rfe1 {[%clk 0:01:28]}  Qxc3 {[%clk 0:00:14]} 25. Rec1 {[%clk 0:01:28]}  Qxg3 {[%clk 0:00:09]} 26. Qf6 {[%clk 0:01:15]}  Qxf2+ {[%clk 0:00:08]} 27. Qxf2 {[%clk 0:01:15]}  Bxf2+ {[%clk 0:00:07]} 28. Kxf2 {[%clk 0:01:15]}  Rd2+ {[%clk 0:00:06]} 29. Kg3 {[%clk 0:01:15]}  R8d4 {[%clk 0:00:06]} 30. Re1 {[%clk 0:01:11]}  Bd5 {[%clk 0:00:04]} 31. Bxd5 {[%clk 0:01:06]}  Rxd5 {[%clk 0:00:05]} 32. h6 {[%clk 0:01:05]}  Rd8 {[%clk 0:00:04]} 33. e6 {[%clk 0:00:56]}  fxe6 {[%clk 0:00:03]} 34. Rxe6 {[%clk 0:00:56]}  Rh8 {[%clk 0:00:04]} 35. Rf1 {[%clk 0:00:47]}  Rd7 {[%clk 0:00:04]} 36. Kxg4 {[%clk 0:00:46]}  Rdh7 {[%clk 0:00:03]} 37. Kg5 {[%clk 0:00:43]}  a5 {[%clk 0:00:03]} 38. g4 {[%clk 0:00:38]}  Kb8 {[%clk 0:00:03]} 39. Rh1 {[%clk 0:00:22]}  Ka7 {[%clk 0:00:03]} 40. Kf5 {[%clk 0:00:21]}  Kb6 {[%clk 0:00:02]} 41. g5 {[%clk 0:00:21]}  Rf8+ {[%clk 0:00:03]} 42. Rf6 {[%clk 0:00:20]}  Rxf6+ {[%clk 0:00:02]} 43. Kxf6 {[%clk 0:00:20]}  a4 {[%clk 0:00:01]} 44. Kg6 {[%clk 0:00:20]} 1-0


[Site "https://www.chess.com"]